{"text_format":"1","workbook":"xlsx","n_sheets":2,"sheets":["Foglio1","Charting"],"not_rendered":{"charts":1,"images":0,"macros":1,"external_links":0,"defined_names":0,"comments":0,"pivot_tables":0},"unopened":[],"bounds":{"document_bytes":16777216,"sheet_cells":100000,"rows_first":2000,"rows_last":500,"rows_between":2000,"halvings":0,"cell_chars":16384,"cell_head_chars":4096},"cells_cut":0,"cells_raw":0,"read":"whole","date_system":"1900"}

{"sheet":"Foglio1","index":0,"n_rows":101,"n_cols":15,"rows_kept":101,"cut":false,"hidden":false,"merged":[]}
["user_Country","user_Affiliation","user_Age","user_id","date","question","subquestion","labels",0,1,2,3,4,5,"Explanation"]
["Germany","Fraunhofer",29,"5852c089aef2c94c3a000367","2017/3/31 12:17:44",9,2,"Private sector","Enabling technologies- e.g. since they would increase the available options for a full-scale quantum computer.","Interim solutions- such as quantum simulation and adiabatic computing- e.g. since they would have a good chance of being useful in the medium term.","Basic research- e.g. since it is premature to move ahead with technology development and the attempts being made to do so are misguided.","Two or three credible candidate platforms- with an aim to produce full-scale computers.","One chosen leading candidate platform- e.g. since only by focusing all available resources is there a reasonable chance of success.","Other (please explain in the textbox after submitting)."]
["United Kingdom","University of Sussex",45,"5852c089aef2c94c3a00036b","2017/5/4 10:42:39",9,2,"Private sector","Two or three credible candidate platforms- with an aim to produce full-scale computers.","Enabling technologies- e.g. since they would increase the available options for a full-scale quantum computer.","Interim solutions- such as quantum simulation and adiabatic computing- e.g. since they would have a good chance of being useful in the medium term.","One chosen leading candidate platform- e.g. since only by focusing all available resources is there a reasonable chance of success.","Basic research- e.g. since it is premature to move ahead with technology development and the attempts being made to do so are misguided.","Other (please explain in the textbox after submitting)."]
["Netherlands","Atos",29,"5852c089aef2c94c3a00036d","2017/5/5 12:24:7",9,2,"Private sector","Other (please explain in the textbox after submitting).","Basic research- e.g. since it is premature to move ahead with technology development and the attempts being made to do so are misguided.","Two or three credible candidate platforms- with an aim to produce full-scale computers.","One chosen leading candidate platform- e.g. since only by focusing all available resources is there a reasonable chance of success.","Enabling technologies- e.g. since they would increase the available options for a full-scale quantum computer.","Interim solutions- such as quantum simulation and adiabatic computing- e.g. since they would have a good chance of being useful in the medium term."]
["Switzerland","IBM Zurich Research Laboratory",55,"5852c089aef2c94c3a00036f","2017/4/21 17:31:55",9,2,"Private sector","Basic research- e.g. since it is premature to move ahead with technology development and the attempts being made to do so are misguided.","Other (please explain in the textbox after submitting).","Enabling technologies- e.g. since they would increase the available options for a full-scale quantum computer.","Interim solutions- such as quantum simulation and adiabatic computing- e.g. since they would have a good chance of being useful in the medium term.","Two or three credible candidate platforms- with an aim to produce full-scale computers.","One chosen leading candidate platform- e.g. since only by focusing all available resources is there a reasonable chance of success.","Large scale industry / academia projects (up to 5 years) which demonstrate the state of the art."]
["Italy","CNR - SPIN",47,"5852c089aef2c94c3a000373","2017/4/24 10:34:56",9,2,"Private sector","Two or three credible candidate platforms- with an aim to produce full-scale computers.","Enabling technologies- e.g. since they would increase the available options for a full-scale quantum computer.","Interim solutions- such as quantum simulation and adiabatic computing- e.g. since they would have a good chance of being useful in the medium term.","One chosen leading candidate platform- e.g. since only by focusing all available resources is there a reasonable chance of success.","Basic research- e.g. since it is premature to move ahead with technology development and the attempts being made to do so are misguided.","Other (please explain in the textbox after submitting)."]
["United Kingdom","Hitachi",null,"5852c089aef2c94c3a00037f","2017/4/21 9:5:6",9,2,"Private sector","Interim solutions- such as quantum simulation and adiabatic computing- e.g. since they would have a good chance of being useful in the medium term.","One chosen leading candidate platform- e.g. since only by focusing all available resources is there a reasonable chance of success.","Basic research- e.g. since it is premature to move ahead with technology development and the attempts being made to do so are misguided.","Enabling technologies- e.g. since they would increase the available options for a full-scale quantum computer.","Two or three credible candidate platforms- with an aim to produce full-scale computers.","Other (please explain in the textbox after submitting)."]
["United Kingdom","University of Oxford",null,"5852c089aef2c94c3a000385","2017/5/12 16:24:18",9,2,"Private sector","Two or three credible candidate platforms- with an aim to produce full-scale computers.","Interim solutions- such as quantum simulation and adiabatic computing- e.g. since they would have a good chance of being useful in the medium term.","Enabling technologies- e.g. since they would increase the available options for a full-scale quantum computer.","Basic research- e.g. since it is premature to move ahead with technology development and the attempts being made to do so are misguided.","One chosen leading candidate platform- e.g. since only by focusing all available resources is there a reasonable chance of success.","Other (please explain in the textbox after submitting).","I have given the same answers as for European funding as this is what the private sector \\should\\\" fund. It also makes the most long-term sense for the sector as a whole. However I suspect that in reality they will pick and choose short-term winners.\""]
["Finland","Aalto University",36,"5852c089aef2c94c3a00038b","2017/4/19 8:53:33",9,2,"Private sector","One chosen leading candidate platform- e.g. since only by focusing all available resources is there a reasonable chance of success.","Enabling technologies- e.g. since they would increase the available options for a full-scale quantum computer.","Interim solutions- such as quantum simulation and adiabatic computing- e.g. since they would have a good chance of being useful in the medium term.","Two or three credible candidate platforms- with an aim to produce full-scale computers.","Basic research- e.g. since it is premature to move ahead with technology development and the attempts being made to do so are misguided.","Other (please explain in the textbox after submitting).","Private sector will be in it for financial benefits and hence should try to build the quantum computer- enabling technologies- and intermediate solutions."]
["Germany","Karlsruhe Institute of Technology",38,"5852c089aef2c94c3a000391","2017/3/29 20:16:5",9,2,"Private sector","Basic research- e.g. since it is premature to move ahead with technology development and the attempts being made to do so are misguided.","Enabling technologies- e.g. since they would increase the available options for a full-scale quantum computer.","Interim solutions- such as quantum simulation and adiabatic computing- e.g. since they would have a good chance of being useful in the medium term.","Two or three credible candidate platforms- with an aim to produce full-scale computers.","One chosen leading candidate platform- e.g. since only by focusing all available resources is there a reasonable chance of success.","Other (please explain in the textbox after submitting)."]
["United Kingdom","Lancaster University",37,"58dbcc590e349c2a60000076","2017/3/29 15:47:37",9,2,"Private sector","Enabling technologies- e.g. since they would increase the available options for a full-scale quantum computer.","Interim solutions- such as quantum simulation and adiabatic computing- e.g. since they would have a good chance of being useful in the medium term.","Two or three credible candidate platforms- with an aim to produce full-scale computers.","Basic research- e.g. since it is premature to move ahead with technology development and the attempts being made to do so are misguided.","One chosen leading candidate platform- e.g. since only by focusing all available resources is there a reasonable chance of success.","Other (please explain in the textbox after submitting)."]
["Germany","Saarland University",49,"58dbcd4e0e349c2a60000090","2017/4/18 18:50:6",9,2,"Private sector","Two or three credible candidate platforms- with an aim to produce full-scale computers.","Interim solutions- such as quantum simulation and adiabatic computing- e.g. since they would have a good chance of being useful in the medium term.","One chosen leading candidate platform- e.g. since only by focusing all available resources is there a reasonable chance of success.","Enabling technologies- e.g. since they would increase the available options for a full-scale quantum computer.","Basic research- e.g. since it is premature to move ahead with technology development and the attempts being made to do so are misguided.","Other (please explain in the textbox after submitting).","Private sector will prefer fast solutions."]
["United States","Nokia Bell-Labs",50,"58dbce3a0e349c2a600000a3","2017/4/19 15:41:56",9,2,"Private sector","Enabling technologies- e.g. since they would increase the available options for a full-scale quantum computer.","Interim solutions- such as quantum simulation and adiabatic computing- e.g. since they would have a good chance of being useful in the medium term.","Two or three credible candidate platforms- with an aim to produce full-scale computers.","Basic research- e.g. since it is premature to move ahead with technology development and the attempts being made to do so are misguided.","One chosen leading candidate platform- e.g. since only by focusing all available resources is there a reasonable chance of success.","Other (please explain in the textbox after submitting)."]
["Singapore","Center for Quantum Technologies",56,"58dbce4e0e349c2a600000a9","2017/4/19 1:5:33",9,2,"Private sector","Basic research- e.g. since it is premature to move ahead with technology development and the attempts being made to do so are misguided.","Enabling technologies- e.g. since they would increase the available options for a full-scale quantum computer.","Interim solutions- such as quantum simulation and adiabatic computing- e.g. since they would have a good chance of being useful in the medium term.","Two or three credible candidate platforms- with an aim to produce full-scale computers.","One chosen leading candidate platform- e.g. since only by focusing all available resources is there a reasonable chance of success.","Other (please explain in the textbox after submitting)."]
["Netherlands","QuSoft/CWI/Univ of Amsterdam",50,"58dbce730e349c2a600000b5","2017/3/29 15:16:35",9,2,"Private sector","Basic research- e.g. since it is premature to move ahead with technology development and the attempts being made to do so are misguided.","Enabling technologies- e.g. since they would increase the available options for a full-scale quantum computer.","Interim solutions- such as quantum simulation and adiabatic computing- e.g. since they would have a good chance of being useful in the medium term.","Two or three credible candidate platforms- with an aim to produce full-scale computers.","One chosen leading candidate platform- e.g. since only by focusing all available resources is there a reasonable chance of success.","Other (please explain in the textbox after submitting)."]
["United States",null,null,"58dbd02b0e349c2a60000182","2017/3/29 15:46:14",9,2,"Private sector","Basic research- e.g. since it is premature to move ahead with technology development and the attempts being made to do so are misguided.","Enabling technologies- e.g. since they would increase the available options for a full-scale quantum computer.","Interim solutions- such as quantum simulation and adiabatic computing- e.g. since they would have a good chance of being useful in the medium term.","Two or three credible candidate platforms- with an aim to produce full-scale computers.","One chosen leading candidate platform- e.g. since only by focusing all available resources is there a reasonable chance of success.","Other (please explain in the textbox after submitting)."]
["Poland","ICFO",61,"58dbd03e0e349c2a60000193","2017/4/20 11:10:4",9,2,"Private sector","Enabling technologies- e.g. since they would increase the available options for a full-scale quantum computer.","Basic research- e.g. since it is premature to move ahead with technology development and the attempts being made to do so are misguided.","Interim solutions- such as quantum simulation and adiabatic computing- e.g. since they would have a good chance of being useful in the medium term.","Two or three credible candidate platforms- with an aim to produce full-scale computers.","One chosen leading candidate platform- e.g. since only by focusing all available resources is there a reasonable chance of success.","Other (please explain in the textbox after submitting)."]
["Netherlands","University of Groningen",46,"58dbd0cc0e349c2a600001b7","2017/3/30 8:26:32",9,2,"Private sector","Two or three credible candidate platforms- with an aim to produce full-scale computers.","Basic research- e.g. since it is premature to move ahead with technology development and the attempts being made to do so are misguided.","Enabling technologies- e.g. since they would increase the available options for a full-scale quantum computer.","Interim solutions- such as quantum simulation and adiabatic computing- e.g. since they would have a good chance of being useful in the medium term.","One chosen leading candidate platform- e.g. since only by focusing all available resources is there a reasonable chance of success.","Other (please explain in the textbox after submitting)."]
["United States","University of Southern California",40,"58dbd2120e349c2a60000222","2017/3/29 17:18:12",9,2,"Private sector","Enabling technologies- e.g. since they would increase the available options for a full-scale quantum computer.","Interim solutions- such as quantum simulation and adiabatic computing- e.g. since they would have a good chance of being useful in the medium term.","Basic research- e.g. since it is premature to move ahead with technology development and the attempts being made to do so are misguided.","Two or three credible candidate platforms- with an aim to produce full-scale computers.","One chosen leading candidate platform- e.g. since only by focusing all available resources is there a reasonable chance of success.","Other (please explain in the textbox after submitting)."]
["Italy","Universita Roma Tre",38,"58dbd49f0e349c2a60000327","2017/5/5 13:51:57",9,2,"Private sector","Interim solutions- such as quantum simulation and adiabatic computing- e.g. since they would have a good chance of being useful in the medium term.","Enabling technologies- e.g. since they would increase the available options for a full-scale quantum computer.","Two or three credible candidate platforms- with an aim to produce full-scale computers.","Basic research- e.g. since it is premature to move ahead with technology development and the attempts being made to do so are misguided.","One chosen leading candidate platform- e.g. since only by focusing all available resources is there a reasonable chance of success.","Other (please explain in the textbox after submitting)."]
["Malta","Physics",38,"58dbe0770e349c2a6000060b","2017/4/28 15:30:36",9,2,"Private sector","Basic research- e.g. since it is premature to move ahead with technology development and the attempts being made to do so are misguided.","Enabling technologies- e.g. since they would increase the available options for a full-scale quantum computer.","Interim solutions- such as quantum simulation and adiabatic computing- e.g. since they would have a good chance of being useful in the medium term.","Two or three credible candidate platforms- with an aim to produce full-scale computers.","One chosen leading candidate platform- e.g. since only by focusing all available resources is there a reasonable chance of success.","Other (please explain in the textbox after submitting)."]
[null,"ibm",null,"58dbe2a90e349c2a60000637","2017/3/29 16:40:36",9,2,"Private sector","Basic research- e.g. since it is premature to move ahead with technology development and the attempts being made to do so are misguided.","Enabling technologies- e.g. since they would increase the available options for a full-scale quantum computer.","Interim solutions- such as quantum simulation and adiabatic computing- e.g. since they would have a good chance of being useful in the medium term.","Two or three credible candidate platforms- with an aim to produce full-scale computers.","One chosen leading candidate platform- e.g. since only by focusing all available resources is there a reasonable chance of success.","Other (please explain in the textbox after submitting)."]
["United States","Boston University- Dept. of ECE",58,"58dbe4610e349c2a600006e6","2017/3/31 14:48:17",9,2,"Private sector","Enabling technologies- e.g. since they would increase the available options for a full-scale quantum computer.","Interim solutions- such as quantum simulation and adiabatic computing- e.g. since they would have a good chance of being useful in the medium term.","Basic research- e.g. since it is premature to move ahead with technology development and the attempts being made to do so are misguided.","Two or three credible candidate platforms- with an aim to produce full-scale computers.","One chosen leading candidate platform- e.g. since only by focusing all available resources is there a reasonable chance of success.","Other (please explain in the textbox after submitting)."]
["United States",null,45,"58dbec9f0e349c2a600007ec","2017/5/7 5:13:11",9,2,"Private sector","Enabling technologies- e.g. since they would increase the available options for a full-scale quantum computer.","Basic research- e.g. since it is premature to move ahead with technology development and the attempts being made to do so are misguided.","Two or three credible candidate platforms- with an aim to produce full-scale computers.","One chosen leading candidate platform- e.g. since only by focusing all available resources is there a reasonable chance of success.","Interim solutions- such as quantum simulation and adiabatic computing- e.g. since they would have a good chance of being useful in the medium term.","Other (please explain in the textbox after submitting)."]
["Russian Federation","Kazan Federal University- professor",63,"58dbfaea0e349c2a60000871","2017/4/23 19:29:6",9,2,"Private sector","Basic research- e.g. since it is premature to move ahead with technology development and the attempts being made to do so are misguided.","Enabling technologies- e.g. since they would increase the available options for a full-scale quantum computer.","Interim solutions- such as quantum simulation and adiabatic computing- e.g. since they would have a good chance of being useful in the medium term.","Two or three credible candidate platforms- with an aim to produce full-scale computers.","One chosen leading candidate platform- e.g. since only by focusing all available resources is there a reasonable chance of success.","Other (please explain in the textbox after submitting)."]
["United States","Microsoft",59,"58dc04140e349c2a6000090f","2017/3/30 3:14:40",9,2,"Private sector","Enabling technologies- e.g. since they would increase the available options for a full-scale quantum computer.","Interim solutions- such as quantum simulation and adiabatic computing- e.g. since they would have a good chance of being useful in the medium term.","Two or three credible candidate platforms- with an aim to produce full-scale computers.","Basic research- e.g. since it is premature to move ahead with technology development and the attempts being made to do so are misguided.","One chosen leading candidate platform- e.g. since only by focusing all available resources is there a reasonable chance of success.","Other (please explain in the textbox after submitting)."]
["France","CNRS - PCQC",39,"58dc0c680e349c2a60000954","2017/3/29 19:59:18",9,2,"Private sector","Basic research- e.g. since it is premature to move ahead with technology development and the attempts being made to do so are misguided.","Enabling technologies- e.g. since they would increase the available options for a full-scale quantum computer.","Two or three credible candidate platforms- with an aim to produce full-scale computers.","Interim solutions- such as quantum simulation and adiabatic computing- e.g. since they would have a good chance of being useful in the medium term.","One chosen leading candidate platform- e.g. since only by focusing all available resources is there a reasonable chance of success.","Other (please explain in the textbox after submitting)."]
["Canada","D-Wave Systems Inc.",50,"58dc152d0e349c2a60000a48","2017/3/29 20:36:23",9,2,"Private sector","Basic research- e.g. since it is premature to move ahead with technology development and the attempts being made to do so are misguided.","Enabling technologies- e.g. since they would increase the available options for a full-scale quantum computer.","Interim solutions- such as quantum simulation and adiabatic computing- e.g. since they would have a good chance of being useful in the medium term.","Two or three credible candidate platforms- with an aim to produce full-scale computers.","One chosen leading candidate platform- e.g. since only by focusing all available resources is there a reasonable chance of success.","Other (please explain in the textbox after submitting)."]
["United States","Microsoft Research",36,"58dc19a20e349c2a60000ae0","2017/3/29 21:39:23",9,2,"Private sector","One chosen leading candidate platform- e.g. since only by focusing all available resources is there a reasonable chance of success.","Two or three credible candidate platforms- with an aim to produce full-scale computers.","Interim solutions- such as quantum simulation and adiabatic computing- e.g. since they would have a good chance of being useful in the medium term.","Enabling technologies- e.g. since they would increase the available options for a full-scale quantum computer.","Basic research- e.g. since it is premature to move ahead with technology development and the attempts being made to do so are misguided.","Other (please explain in the textbox after submitting).","Based on my experience in private sector- most companies will prefer near term deliverables."]
["Italy","Universita degli Studi di Milano- Dept. Comp. Sci.",51,"58dc29b80e349c2a60000d4c","2017/3/29 21:48:26",9,2,"Private sector","Basic research- e.g. since it is premature to move ahead with technology development and the attempts being made to do so are misguided.","Enabling technologies- e.g. since they would increase the available options for a full-scale quantum computer.","Interim solutions- such as quantum simulation and adiabatic computing- e.g. since they would have a good chance of being useful in the medium term.","Two or three credible candidate platforms- with an aim to produce full-scale computers.","One chosen leading candidate platform- e.g. since only by focusing all available resources is there a reasonable chance of success.","Other (please explain in the textbox after submitting)."]
["United States","Sandia National Labs",40,"58dc2de20e349c2a60000dda","2017/3/29 22:19:13",9,2,"Private sector","One chosen leading candidate platform- e.g. since only by focusing all available resources is there a reasonable chance of success.","Interim solutions- such as quantum simulation and adiabatic computing- e.g. since they would have a good chance of being useful in the medium term.","Two or three credible candidate platforms- with an aim to produce full-scale computers.","Enabling technologies- e.g. since they would increase the available options for a full-scale quantum computer.","Basic research- e.g. since it is premature to move ahead with technology development and the attempts being made to do so are misguided.","Other (please explain in the textbox after submitting)."]
["Australia","University of Sydney",33,"58dc31340e349c2a60000e24","2017/3/29 23:20:38",9,2,"Private sector","Basic research- e.g. since it is premature to move ahead with technology development and the attempts being made to do so are misguided.","Enabling technologies- e.g. since they would increase the available options for a full-scale quantum computer.","Interim solutions- such as quantum simulation and adiabatic computing- e.g. since they would have a good chance of being useful in the medium term.","Two or three credible candidate platforms- with an aim to produce full-scale computers.","One chosen leading candidate platform- e.g. since only by focusing all available resources is there a reasonable chance of success.","Other (please explain in the textbox after submitting)."]
["Spain","Universitat Autonoma de Barcelona",47,"58dc3c050e349c2a60000f57","2017/4/14 18:1:40",9,2,"Private sector","Basic research- e.g. since it is premature to move ahead with technology development and the attempts being made to do so are misguided.","Enabling technologies- e.g. since they would increase the available options for a full-scale quantum computer.","Interim solutions- such as quantum simulation and adiabatic computing- e.g. since they would have a good chance of being useful in the medium term.","Two or three credible candidate platforms- with an aim to produce full-scale computers.","One chosen leading candidate platform- e.g. since only by focusing all available resources is there a reasonable chance of success.","Other (please explain in the textbox after submitting).","I think basic reaserach is mandatory in fields like many-body physics- decoherence and quantum-to-classical transition.   "]
["Singapore","Centre for Quantum Technologies- National Universtiy of Singapore","40+","58dc8f390e349c2a6000135a","2017/5/12 3:34:46",9,2,"Private sector","Basic research- e.g. since it is premature to move ahead with technology development and the attempts being made to do so are misguided.","Enabling technologies- e.g. since they would increase the available options for a full-scale quantum computer.","Interim solutions- such as quantum simulation and adiabatic computing- e.g. since they would have a good chance of being useful in the medium term.","Two or three credible candidate platforms- with an aim to produce full-scale computers.","One chosen leading candidate platform- e.g. since only by focusing all available resources is there a reasonable chance of success.","Other (please explain in the textbox after submitting)."]
["United Kingdom","University of Cambridge",38,"58dd39ba893db95b5c000583","2017/4/1 16:13:38",9,2,"Private sector","Interim solutions- such as quantum simulation and adiabatic computing- e.g. since they would have a good chance of being useful in the medium term.","Two or three credible candidate platforms- with an aim to produce full-scale computers.","Enabling technologies- e.g. since they would increase the available options for a full-scale quantum computer.","Basic research- e.g. since it is premature to move ahead with technology development and the attempts being made to do so are misguided.","One chosen leading candidate platform- e.g. since only by focusing all available resources is there a reasonable chance of success.","Other (please explain in the textbox after submitting)."]
["United Kingdom","University College London",74,"58de3f1a893db95b5c000cac","2017/3/31 12:35:56",9,2,"Private sector","Basic research- e.g. since it is premature to move ahead with technology development and the attempts being made to do so are misguided.","Two or three credible candidate platforms- with an aim to produce full-scale computers.","Enabling technologies- e.g. since they would increase the available options for a full-scale quantum computer.","Interim solutions- such as quantum simulation and adiabatic computing- e.g. since they would have a good chance of being useful in the medium term.","One chosen leading candidate platform- e.g. since only by focusing all available resources is there a reasonable chance of success.","Other (please explain in the textbox after submitting).","Based on my experience in private sector- most companies will prefer near term deliverables."]
["Austria","University of Innsbruck",36,"58ded299f2d9f720620004bb","2017/3/31 22:47:39",9,2,"Private sector","Two or three credible candidate platforms- with an aim to produce full-scale computers.","Enabling technologies- e.g. since they would increase the available options for a full-scale quantum computer.","Basic research- e.g. since it is premature to move ahead with technology development and the attempts being made to do so are misguided.","Interim solutions- such as quantum simulation and adiabatic computing- e.g. since they would have a good chance of being useful in the medium term.","One chosen leading candidate platform- e.g. since only by focusing all available resources is there a reasonable chance of success.","Other (please explain in the textbox after submitting)."]
["United Kingdom","Loughborough University",53,"58def721f2d9f72062000604","2017/4/24 11:15:51",9,2,"Private sector","Interim solutions- such as quantum simulation and adiabatic computing- e.g. since they would have a good chance of being useful in the medium term.","Enabling technologies- e.g. since they would increase the available options for a full-scale quantum computer.","Two or three credible candidate platforms- with an aim to produce full-scale computers.","One chosen leading candidate platform- e.g. since only by focusing all available resources is there a reasonable chance of success.","Basic research- e.g. since it is premature to move ahead with technology development and the attempts being made to do so are misguided.","Other (please explain in the textbox after submitting)."]
["Canada","Anyon Systems Inc.",33,"58e1129318298df04d00003b","2017/5/5 15:52:19",9,2,"Private sector","Basic research- e.g. since it is premature to move ahead with technology development and the attempts being made to do so are misguided.","Enabling technologies- e.g. since they would increase the available options for a full-scale quantum computer.","Interim solutions- such as quantum simulation and adiabatic computing- e.g. since they would have a good chance of being useful in the medium term.","Two or three credible candidate platforms- with an aim to produce full-scale computers.","One chosen leading candidate platform- e.g. since only by focusing all available resources is there a reasonable chance of success.","Other (please explain in the textbox after submitting)."]
["Spain",null,42,"58e205ac6c7ae40b360001b9","2017/4/4 9:9:37",9,2,"Private sector","Two or three credible candidate platforms- with an aim to produce full-scale computers.","One chosen leading candidate platform- e.g. since only by focusing all available resources is there a reasonable chance of success.","Interim solutions- such as quantum simulation and adiabatic computing- e.g. since they would have a good chance of being useful in the medium term.","Basic research- e.g. since it is premature to move ahead with technology development and the attempts being made to do so are misguided.","Enabling technologies- e.g. since they would increase the available options for a full-scale quantum computer.","Other (please explain in the textbox after submitting)."]
["United Kingdom","Innovate UK",34,"58e368997ceceb751a0007ec","2017/4/10 15:29:51",9,2,"Private sector","One chosen leading candidate platform- e.g. since only by focusing all available resources is there a reasonable chance of success.","Two or three credible candidate platforms- with an aim to produce full-scale computers.","Interim solutions- such as quantum simulation and adiabatic computing- e.g. since they would have a good chance of being useful in the medium term.","Enabling technologies- e.g. since they would increase the available options for a full-scale quantum computer.","Basic research- e.g. since it is premature to move ahead with technology development and the attempts being made to do so are misguided.","Other (please explain in the textbox after submitting).","Question is difficult to understand. Each company will choose one option- but that option may differ between different companies (therefore between all of them 'industry' will have chosen 2-3 options. Answers are not mutually exclusive- companies will choose 1 technology- but look for quick payback of investment. There will be a trade off between how long companies are prepared to wait- and the size of the prize."]
["Sweden","Chalmers University of Technology",39,"58e36a6b7ceceb751a000804","2017/5/12 15:14:20",9,2,"Private sector","Two or three credible candidate platforms- with an aim to produce full-scale computers.","Enabling technologies- e.g. since they would increase the available options for a full-scale quantum computer.","Interim solutions- such as quantum simulation and adiabatic computing- e.g. since they would have a good chance of being useful in the medium term.","One chosen leading candidate platform- e.g. since only by focusing all available resources is there a reasonable chance of success.","Basic research- e.g. since it is premature to move ahead with technology development and the attempts being made to do so are misguided.","Other (please explain in the textbox after submitting)."]
["Germany","SAP",null,"58e4f37f7b67cab57f0004f2","2017/4/26 7:54:29",9,2,"Private sector","Basic research- e.g. since it is premature to move ahead with technology development and the attempts being made to do so are misguided.","Enabling technologies- e.g. since they would increase the available options for a full-scale quantum computer.","Two or three credible candidate platforms- with an aim to produce full-scale computers.","Interim solutions- such as quantum simulation and adiabatic computing- e.g. since they would have a good chance of being useful in the medium term.","One chosen leading candidate platform- e.g. since only by focusing all available resources is there a reasonable chance of success.","Other (please explain in the textbox after submitting).","important to have research and industry working together. "]
["Germany","JGU Mainz",38,"58e5f495ca034e7c6b00026d","2017/4/24 8:45:55",9,2,"Private sector","Basic research- e.g. since it is premature to move ahead with technology development and the attempts being made to do so are misguided.","Enabling technologies- e.g. since they would increase the available options for a full-scale quantum computer.","Interim solutions- such as quantum simulation and adiabatic computing- e.g. since they would have a good chance of being useful in the medium term.","Two or three credible candidate platforms- with an aim to produce full-scale computers.","One chosen leading candidate platform- e.g. since only by focusing all available resources is there a reasonable chance of success.","Other (please explain in the textbox after submitting)."]
["United States","Intel Corporation",45,"58ece8f41f375cbb71000563","2017/4/11 14:49:15",9,2,"Private sector","Basic research- e.g. since it is premature to move ahead with technology development and the attempts being made to do so are misguided.","Enabling technologies- e.g. since they would increase the available options for a full-scale quantum computer.","Interim solutions- such as quantum simulation and adiabatic computing- e.g. since they would have a good chance of being useful in the medium term.","Two or three credible candidate platforms- with an aim to produce full-scale computers.","One chosen leading candidate platform- e.g. since only by focusing all available resources is there a reasonable chance of success.","Other (please explain in the textbox after submitting)."]
["United States","USC",49,"58f2bc26b46e82714e0000c2","2017/4/16 1:2:31",9,2,"Private sector","Basic research- e.g. since it is premature to move ahead with technology development and the attempts being made to do so are misguided.","Enabling technologies- e.g. since they would increase the available options for a full-scale quantum computer.","Interim solutions- such as quantum simulation and adiabatic computing- e.g. since they would have a good chance of being useful in the medium term.","Two or three credible candidate platforms- with an aim to produce full-scale computers.","One chosen leading candidate platform- e.g. since only by focusing all available resources is there a reasonable chance of success.","Other (please explain in the textbox after submitting)."]
["Australia","QxBranch",39,"58f597be16df98d816000218","2017/4/18 5:40:26",9,2,"Private sector","Interim solutions- such as quantum simulation and adiabatic computing- e.g. since they would have a good chance of being useful in the medium term.","Enabling technologies- e.g. since they would increase the available options for a full-scale quantum computer.","Basic research- e.g. since it is premature to move ahead with technology development and the attempts being made to do so are misguided.","One chosen leading candidate platform- e.g. since only by focusing all available resources is there a reasonable chance of success.","Two or three credible candidate platforms- with an aim to produce full-scale computers.","Other (please explain in the textbox after submitting)."]
["United States","University Professor",null,"58f5a1be16df98d81600027f","2017/4/30 22:8:20",9,2,"Private sector","Basic research- e.g. since it is premature to move ahead with technology development and the attempts being made to do so are misguided.","Interim solutions- such as quantum simulation and adiabatic computing- e.g. since they would have a good chance of being useful in the medium term.","Enabling technologies- e.g. since they would increase the available options for a full-scale quantum computer.","Two or three credible candidate platforms- with an aim to produce full-scale computers.","One chosen leading candidate platform- e.g. since only by focusing all available resources is there a reasonable chance of success.","Other (please explain in the textbox after submitting)."]
["Italy","Universita degli Studi di Napoli Federico II",42,"58f645e116df98d8160007d6","2017/4/18 17:30:24",9,2,"Private sector","Enabling technologies- e.g. since they would increase the available options for a full-scale quantum computer.","Interim solutions- such as quantum simulation and adiabatic computing- e.g. since they would have a good chance of being useful in the medium term.","Basic research- e.g. since it is premature to move ahead with technology development and the attempts being made to do so are misguided.","Two or three credible candidate platforms- with an aim to produce full-scale computers.","One chosen leading candidate platform- e.g. since only by focusing all available resources is there a reasonable chance of success.","Other (please explain in the textbox after submitting)."]
["United States","Quantum AI Laboratory- NASA Ames Research Center ",34,"58f6466316df98d8160007e8","2017/4/20 1:35:14",9,2,"Private sector","Basic research- e.g. since it is premature to move ahead with technology development and the attempts being made to do so are misguided.","Enabling technologies- e.g. since they would increase the available options for a full-scale quantum computer.","Interim solutions- such as quantum simulation and adiabatic computing- e.g. since they would have a good chance of being useful in the medium term.","Two or three credible candidate platforms- with an aim to produce full-scale computers.","One chosen leading candidate platform- e.g. since only by focusing all available resources is there a reasonable chance of success.","Other (please explain in the textbox after submitting)."]
["United States","SSH",57,"58f6477516df98d816000823","2017/4/18 17:26:5",9,2,"Private sector","Two or three credible candidate platforms- with an aim to produce full-scale computers.","Enabling technologies- e.g. since they would increase the available options for a full-scale quantum computer.","Interim solutions- such as quantum simulation and adiabatic computing- e.g. since they would have a good chance of being useful in the medium term.","Basic research- e.g. since it is premature to move ahead with technology development and the attempts being made to do so are misguided.","One chosen leading candidate platform- e.g. since only by focusing all available resources is there a reasonable chance of success.","Other (please explain in the textbox after submitting)."]
["United States","MIT",56,"58f653ac16df98d816000a1a","2017/5/5 17:37:0",9,2,"Private sector","Basic research- e.g. since it is premature to move ahead with technology development and the attempts being made to do so are misguided.","Enabling technologies- e.g. since they would increase the available options for a full-scale quantum computer.","Interim solutions- such as quantum simulation and adiabatic computing- e.g. since they would have a good chance of being useful in the medium term.","Two or three credible candidate platforms- with an aim to produce full-scale computers.","One chosen leading candidate platform- e.g. since only by focusing all available resources is there a reasonable chance of success.","Other (please explain in the textbox after submitting)."]
[null,null,null,"58f6545b16df98d816000a30","2017/4/18 19:1:53",9,2,"Private sector","Two or three credible candidate platforms- with an aim to produce full-scale computers.","Basic research- e.g. since it is premature to move ahead with technology development and the attempts being made to do so are misguided.","Enabling technologies- e.g. since they would increase the available options for a full-scale quantum computer.","Interim solutions- such as quantum simulation and adiabatic computing- e.g. since they would have a good chance of being useful in the medium term.","One chosen leading candidate platform- e.g. since only by focusing all available resources is there a reasonable chance of success.","Other (please explain in the textbox after submitting)."]
["Sweden","Stockholm University",44,"58f6573c16df98d816000b1e","2017/5/12 23:28:15",9,2,"Private sector","Two or three credible candidate platforms- with an aim to produce full-scale computers.","One chosen leading candidate platform- e.g. since only by focusing all available resources is there a reasonable chance of success.","Interim solutions- such as quantum simulation and adiabatic computing- e.g. since they would have a good chance of being useful in the medium term.","Enabling technologies- e.g. since they would increase the available options for a full-scale quantum computer.","Basic research- e.g. since it is premature to move ahead with technology development and the attempts being made to do so are misguided.","Other (please explain in the textbox after submitting)."]
["Finland","Aalto University",47,"58f667a816df98d816000dd3","2017/4/18 20:19:49",9,2,"Private sector","Interim solutions- such as quantum simulation and adiabatic computing- e.g. since they would have a good chance of being useful in the medium term.","Basic research- e.g. since it is premature to move ahead with technology development and the attempts being made to do so are misguided.","Two or three credible candidate platforms- with an aim to produce full-scale computers.","Enabling technologies- e.g. since they would increase the available options for a full-scale quantum computer.","One chosen leading candidate platform- e.g. since only by focusing all available resources is there a reasonable chance of success.","Other (please explain in the textbox after submitting)."]
["United States","Google",44,"58f6727b16df98d816000ea3","2017/4/29 0:31:41",9,2,"Private sector","Two or three credible candidate platforms- with an aim to produce full-scale computers.","One chosen leading candidate platform- e.g. since only by focusing all available resources is there a reasonable chance of success.","Interim solutions- such as quantum simulation and adiabatic computing- e.g. since they would have a good chance of being useful in the medium term.","Enabling technologies- e.g. since they would increase the available options for a full-scale quantum computer.","Basic research- e.g. since it is premature to move ahead with technology development and the attempts being made to do so are misguided.","Other (please explain in the textbox after submitting)."]
["Israel","Hebrew University of Jerusalem",61,"58f6fd33d1c989b104000632","2017/4/19 6:25:58",9,2,"Private sector","Basic research- e.g. since it is premature to move ahead with technology development and the attempts being made to do so are misguided.","Enabling technologies- e.g. since they would increase the available options for a full-scale quantum computer.","Interim solutions- such as quantum simulation and adiabatic computing- e.g. since they would have a good chance of being useful in the medium term.","Two or three credible candidate platforms- with an aim to produce full-scale computers.","One chosen leading candidate platform- e.g. since only by focusing all available resources is there a reasonable chance of success.","Other (please explain in the textbox after submitting)."]
["France","Nokia Bell Labs",null,"58f7180cd1c989b1040007af","2017/4/20 10:27:32",9,2,"Private sector","Enabling technologies- e.g. since they would increase the available options for a full-scale quantum computer.","Basic research- e.g. since it is premature to move ahead with technology development and the attempts being made to do so are misguided.","Other (please explain in the textbox after submitting).","Interim solutions- such as quantum simulation and adiabatic computing- e.g. since they would have a good chance of being useful in the medium term.","Two or three credible candidate platforms- with an aim to produce full-scale computers.","One chosen leading candidate platform- e.g. since only by focusing all available resources is there a reasonable chance of success."]
["United Kingdom","UCL",36,"58f75bb2d1c989b104000a11","2017/4/19 14:38:14",9,2,"Private sector","Interim solutions- such as quantum simulation and adiabatic computing- e.g. since they would have a good chance of being useful in the medium term.","One chosen leading candidate platform- e.g. since only by focusing all available resources is there a reasonable chance of success.","Enabling technologies- e.g. since they would increase the available options for a full-scale quantum computer.","Basic research- e.g. since it is premature to move ahead with technology development and the attempts being made to do so are misguided.","Two or three credible candidate platforms- with an aim to produce full-scale computers.","Other (please explain in the textbox after submitting)."]
["Sweden","stockholm university",65,"58f75f9cd1c989b104000a4c","2017/4/19 13:16:27",9,2,"Private sector","Basic research- e.g. since it is premature to move ahead with technology development and the attempts being made to do so are misguided.","Enabling technologies- e.g. since they would increase the available options for a full-scale quantum computer.","Interim solutions- such as quantum simulation and adiabatic computing- e.g. since they would have a good chance of being useful in the medium term.","Two or three credible candidate platforms- with an aim to produce full-scale computers.","One chosen leading candidate platform- e.g. since only by focusing all available resources is there a reasonable chance of success.","Other (please explain in the textbox after submitting)."]
["Germany","NMTC",53,"58f79331d1c989b104000ec6","2017/4/19 17:6:14",9,2,"Private sector","Basic research- e.g. since it is premature to move ahead with technology development and the attempts being made to do so are misguided.","Enabling technologies- e.g. since they would increase the available options for a full-scale quantum computer.","Interim solutions- such as quantum simulation and adiabatic computing- e.g. since they would have a good chance of being useful in the medium term.","Two or three credible candidate platforms- with an aim to produce full-scale computers.","One chosen leading candidate platform- e.g. since only by focusing all available resources is there a reasonable chance of success.","Other (please explain in the textbox after submitting)."]
["Italy","Politecnico di Milano",44,"58f8c58882c98b2370000893","2017/4/29 22:16:41",9,2,"Private sector","Enabling technologies- e.g. since they would increase the available options for a full-scale quantum computer.","Basic research- e.g. since it is premature to move ahead with technology development and the attempts being made to do so are misguided.","Interim solutions- such as quantum simulation and adiabatic computing- e.g. since they would have a good chance of being useful in the medium term.","Two or three credible candidate platforms- with an aim to produce full-scale computers.","One chosen leading candidate platform- e.g. since only by focusing all available resources is there a reasonable chance of success.","Other (please explain in the textbox after submitting)."]
["France","CNRS- UPMC- ENS",71,"58f8e97182c98b2370000b0e","2017/5/5 17:10:1",9,2,"Private sector","Enabling technologies- e.g. since they would increase the available options for a full-scale quantum computer.","Two or three credible candidate platforms- with an aim to produce full-scale computers.","Interim solutions- such as quantum simulation and adiabatic computing- e.g. since they would have a good chance of being useful in the medium term.","One chosen leading candidate platform- e.g. since only by focusing all available resources is there a reasonable chance of success.","Basic research- e.g. since it is premature to move ahead with technology development and the attempts being made to do so are misguided.","Other (please explain in the textbox after submitting)."]
["United States","IntControl LLC",47,"58f9f72ddce69e95310006d6","2017/4/22 19:16:50",9,2,"Private sector","Interim solutions- such as quantum simulation and adiabatic computing- e.g. since they would have a good chance of being useful in the medium term.","Enabling technologies- e.g. since they would increase the available options for a full-scale quantum computer.","One chosen leading candidate platform- e.g. since only by focusing all available resources is there a reasonable chance of success.","Two or three credible candidate platforms- with an aim to produce full-scale computers.","Basic research- e.g. since it is premature to move ahead with technology development and the attempts being made to do so are misguided.","Other (please explain in the textbox after submitting)."]
["United Kingdom","None",46,"58fa4404dce69e9531000a61","2017/4/28 16:34:43",9,2,"Private sector","One chosen leading candidate platform- e.g. since only by focusing all available resources is there a reasonable chance of success.","Interim solutions- such as quantum simulation and adiabatic computing- e.g. since they would have a good chance of being useful in the medium term.","Two or three credible candidate platforms- with an aim to produce full-scale computers.","Enabling technologies- e.g. since they would increase the available options for a full-scale quantum computer.","Basic research- e.g. since it is premature to move ahead with technology development and the attempts being made to do so are misguided.","Other (please explain in the textbox after submitting)."]
["Switzerland","Paul Scherrer Institut",32,"58fdab2d2c13bf6d64000233","2017/4/24 7:42:0",9,2,"Private sector","Basic research- e.g. since it is premature to move ahead with technology development and the attempts being made to do so are misguided.","Interim solutions- such as quantum simulation and adiabatic computing- e.g. since they would have a good chance of being useful in the medium term.","Enabling technologies- e.g. since they would increase the available options for a full-scale quantum computer.","Two or three credible candidate platforms- with an aim to produce full-scale computers.","One chosen leading candidate platform- e.g. since only by focusing all available resources is there a reasonable chance of success.","Other (please explain in the textbox after submitting)."]
["Germany","ASML",54,"58ff77bc1647f8e45f00086a","2017/4/25 16:56:21",9,2,"Private sector","One chosen leading candidate platform- e.g. since only by focusing all available resources is there a reasonable chance of success.","Interim solutions- such as quantum simulation and adiabatic computing- e.g. since they would have a good chance of being useful in the medium term.","Two or three credible candidate platforms- with an aim to produce full-scale computers.","Enabling technologies- e.g. since they would increase the available options for a full-scale quantum computer.","Basic research- e.g. since it is premature to move ahead with technology development and the attempts being made to do so are misguided.","Other (please explain in the textbox after submitting)."]
["Finland","Aalto University",40,"5904f5b5b78ea63806000843","2017/4/29 20:51:41",9,2,"Private sector","Basic research- e.g. since it is premature to move ahead with technology development and the attempts being made to do so are misguided.","Enabling technologies- e.g. since they would increase the available options for a full-scale quantum computer.","Interim solutions- such as quantum simulation and adiabatic computing- e.g. since they would have a good chance of being useful in the medium term.","Two or three credible candidate platforms- with an aim to produce full-scale computers.","One chosen leading candidate platform- e.g. since only by focusing all available resources is there a reasonable chance of success.","Other (please explain in the textbox after submitting)."]
["Japan","The University of Tokyo",49,"5905508ce3cf73976b00018f","2017/4/30 4:28:24",9,2,"Private sector","Two or three credible candidate platforms- with an aim to produce full-scale computers.","Interim solutions- such as quantum simulation and adiabatic computing- e.g. since they would have a good chance of being useful in the medium term.","Enabling technologies- e.g. since they would increase the available options for a full-scale quantum computer.","One chosen leading candidate platform- e.g. since only by focusing all available resources is there a reasonable chance of success.","Basic research- e.g. since it is premature to move ahead with technology development and the attempts being made to do so are misguided.","Other (please explain in the textbox after submitting)."]
["Greece","Technical University of Crete",41,"5908d40785d9a7453b000824","2017/5/2 19:44:22",9,2,"Private sector","Interim solutions- such as quantum simulation and adiabatic computing- e.g. since they would have a good chance of being useful in the medium term.","One chosen leading candidate platform- e.g. since only by focusing all available resources is there a reasonable chance of success.","Two or three credible candidate platforms- with an aim to produce full-scale computers.","Basic research- e.g. since it is premature to move ahead with technology development and the attempts being made to do so are misguided.","Enabling technologies- e.g. since they would increase the available options for a full-scale quantum computer.","Other (please explain in the textbox after submitting)."]
["Hungary","Wigner Research Centre for Physics",39,"590cc7306e214ad410000add","2017/5/5 20:35:25",9,2,"Private sector","Interim solutions- such as quantum simulation and adiabatic computing- e.g. since they would have a good chance of being useful in the medium term.","Two or three credible candidate platforms- with an aim to produce full-scale computers.","Enabling technologies- e.g. since they would increase the available options for a full-scale quantum computer.","One chosen leading candidate platform- e.g. since only by focusing all available resources is there a reasonable chance of success.","Basic research- e.g. since it is premature to move ahead with technology development and the attempts being made to do so are misguided.","Other (please explain in the textbox after submitting)."]
["Finland","Aalto University",59,"590dd8d776c6fbf97c000472","2017/5/6 20:21:45",9,2,"Private sector","Interim solutions- such as quantum simulation and adiabatic computing- e.g. since they would have a good chance of being useful in the medium term.","Enabling technologies- e.g. since they would increase the available options for a full-scale quantum computer.","One chosen leading candidate platform- e.g. since only by focusing all available resources is there a reasonable chance of success.","Basic research- e.g. since it is premature to move ahead with technology development and the attempts being made to do so are misguided.","Two or three credible candidate platforms- with an aim to produce full-scale computers.","Other (please explain in the textbox after submitting)."]
["Italy","LFoundry s.r.l.",55,"5910260330ff4fca44000249","2017/5/8 8:11:29",9,2,"Private sector","Basic research- e.g. since it is premature to move ahead with technology development and the attempts being made to do so are misguided.","Enabling technologies- e.g. since they would increase the available options for a full-scale quantum computer.","Interim solutions- such as quantum simulation and adiabatic computing- e.g. since they would have a good chance of being useful in the medium term.","Two or three credible candidate platforms- with an aim to produce full-scale computers.","One chosen leading candidate platform- e.g. since only by focusing all available resources is there a reasonable chance of success.","Other (please explain in the textbox after submitting)."]
["United Kingdom","Cardiff University",45,"5910a43930ff4fca44000627","2017/5/8 19:59:49",9,2,"Private sector","Interim solutions- such as quantum simulation and adiabatic computing- e.g. since they would have a good chance of being useful in the medium term.","Two or three credible candidate platforms- with an aim to produce full-scale computers.","One chosen leading candidate platform- e.g. since only by focusing all available resources is there a reasonable chance of success.","Enabling technologies- e.g. since they would increase the available options for a full-scale quantum computer.","Basic research- e.g. since it is premature to move ahead with technology development and the attempts being made to do so are misguided.","Other (please explain in the textbox after submitting).","I'd hope focus is on interim solutions. Likely and sadly some will focus on specific platforms- but hopefully keep options open instead of choosing too quickly. Unlikely they see basic research as relevant and enbaling technologies may also be overlooked."]
["Netherlands","Director at QuTech",42,"5911d11356953dae2b0004fb","2017/5/9 15:54:12",9,2,"Private sector","Two or three credible candidate platforms- with an aim to produce full-scale computers.","One chosen leading candidate platform- e.g. since only by focusing all available resources is there a reasonable chance of success.","Enabling technologies- e.g. since they would increase the available options for a full-scale quantum computer.","Interim solutions- such as quantum simulation and adiabatic computing- e.g. since they would have a good chance of being useful in the medium term.","Basic research- e.g. since it is premature to move ahead with technology development and the attempts being made to do so are misguided.","Other (please explain in the textbox after submitting)."]
["Netherlands","Delft University of Technology",24,"5911da0c56953dae2b0005a7","2017/5/9 15:24:30",9,2,"Private sector","Basic research- e.g. since it is premature to move ahead with technology development and the attempts being made to do so are misguided.","Enabling technologies- e.g. since they would increase the available options for a full-scale quantum computer.","Interim solutions- such as quantum simulation and adiabatic computing- e.g. since they would have a good chance of being useful in the medium term.","Two or three credible candidate platforms- with an aim to produce full-scale computers.","One chosen leading candidate platform- e.g. since only by focusing all available resources is there a reasonable chance of success.","Other (please explain in the textbox after submitting)."]
["Netherlands","QuTech- TU Delft",25,"5911e10256953dae2b00079d","2017/5/9 16:12:0",9,2,"Private sector","One chosen leading candidate platform- e.g. since only by focusing all available resources is there a reasonable chance of success.","Two or three credible candidate platforms- with an aim to produce full-scale computers.","Enabling technologies- e.g. since they would increase the available options for a full-scale quantum computer.","Interim solutions- such as quantum simulation and adiabatic computing- e.g. since they would have a good chance of being useful in the medium term.","Basic research- e.g. since it is premature to move ahead with technology development and the attempts being made to do so are misguided.","Other (please explain in the textbox after submitting)."]
["Netherlands","QuTech TUDelft",36,"5912009156953dae2b000b30","2017/5/9 18:11:13",9,2,"Private sector","Basic research- e.g. since it is premature to move ahead with technology development and the attempts being made to do so are misguided.","Enabling technologies- e.g. since they would increase the available options for a full-scale quantum computer.","Interim solutions- such as quantum simulation and adiabatic computing- e.g. since they would have a good chance of being useful in the medium term.","Two or three credible candidate platforms- with an aim to produce full-scale computers.","One chosen leading candidate platform- e.g. since only by focusing all available resources is there a reasonable chance of success.","Other (please explain in the textbox after submitting)."]
["Netherlands","TNO",41,"5912ade8bdf6d44f18000295","2017/5/10 6:53:31",9,2,"Private sector","One chosen leading candidate platform- e.g. since only by focusing all available resources is there a reasonable chance of success.","Enabling technologies- e.g. since they would increase the available options for a full-scale quantum computer.","Two or three credible candidate platforms- with an aim to produce full-scale computers.","Basic research- e.g. since it is premature to move ahead with technology development and the attempts being made to do so are misguided.","Interim solutions- such as quantum simulation and adiabatic computing- e.g. since they would have a good chance of being useful in the medium term.","Other (please explain in the textbox after submitting)."]
["Netherlands","TU Delft",33,"5912c704bdf6d44f18000402","2017/5/10 8:20:4",9,2,"Private sector","Interim solutions- such as quantum simulation and adiabatic computing- e.g. since they would have a good chance of being useful in the medium term.","Two or three credible candidate platforms- with an aim to produce full-scale computers.","Enabling technologies- e.g. since they would increase the available options for a full-scale quantum computer.","Basic research- e.g. since it is premature to move ahead with technology development and the attempts being made to do so are misguided.","One chosen leading candidate platform- e.g. since only by focusing all available resources is there a reasonable chance of success.","Other (please explain in the textbox after submitting)."]
["Netherlands","Delft University of Technology",26,"5912ebe1bdf6d44f1800061b","2017/5/10 10:38:20",9,2,"Private sector","Basic research- e.g. since it is premature to move ahead with technology development and the attempts being made to do so are misguided.","Enabling technologies- e.g. since they would increase the available options for a full-scale quantum computer.","Interim solutions- such as quantum simulation and adiabatic computing- e.g. since they would have a good chance of being useful in the medium term.","Two or three credible candidate platforms- with an aim to produce full-scale computers.","One chosen leading candidate platform- e.g. since only by focusing all available resources is there a reasonable chance of success.","Other (please explain in the textbox after submitting)."]
["United Kingdom","University of Sussex",23,"5912f6e7bdf6d44f18000711","2017/5/10 12:13:7",9,2,"Private sector","Basic research- e.g. since it is premature to move ahead with technology development and the attempts being made to do so are misguided.","Enabling technologies- e.g. since they would increase the available options for a full-scale quantum computer.","Interim solutions- such as quantum simulation and adiabatic computing- e.g. since they would have a good chance of being useful in the medium term.","Two or three credible candidate platforms- with an aim to produce full-scale computers.","One chosen leading candidate platform- e.g. since only by focusing all available resources is there a reasonable chance of success.","Other (please explain in the textbox after submitting)."]
["United Kingdom","Heriot-Watt University",44,"59130103bdf6d44f180007b7","2017/5/10 14:10:26",9,2,"Private sector","Two or three credible candidate platforms- with an aim to produce full-scale computers.","One chosen leading candidate platform- e.g. since only by focusing all available resources is there a reasonable chance of success.","Enabling technologies- e.g. since they would increase the available options for a full-scale quantum computer.","Basic research- e.g. since it is premature to move ahead with technology development and the attempts being made to do so are misguided.","Interim solutions- such as quantum simulation and adiabatic computing- e.g. since they would have a good chance of being useful in the medium term.","Other (please explain in the textbox after submitting)."]
["Switzerland","ETH Zurich",27,"59130228bdf6d44f1800080e","2017/5/10 12:36:57",9,2,"Private sector","One chosen leading candidate platform- e.g. since only by focusing all available resources is there a reasonable chance of success.","Enabling technologies- e.g. since they would increase the available options for a full-scale quantum computer.","Interim solutions- such as quantum simulation and adiabatic computing- e.g. since they would have a good chance of being useful in the medium term.","Basic research- e.g. since it is premature to move ahead with technology development and the attempts being made to do so are misguided.","Two or three credible candidate platforms- with an aim to produce full-scale computers.","Other (please explain in the textbox after submitting)."]
["Greece","Universitat Autonoma de Barcelona",36,"59130582bdf6d44f180008ea","2017/5/10 14:6:11",9,2,"Private sector","Interim solutions- such as quantum simulation and adiabatic computing- e.g. since they would have a good chance of being useful in the medium term.","Enabling technologies- e.g. since they would increase the available options for a full-scale quantum computer.","One chosen leading candidate platform- e.g. since only by focusing all available resources is there a reasonable chance of success.","Two or three credible candidate platforms- with an aim to produce full-scale computers.","Basic research- e.g. since it is premature to move ahead with technology development and the attempts being made to do so are misguided.","Other (please explain in the textbox after submitting).","Unfortunately this is what i believe they will fund..  I stress that this is NOT what I want them to fund."]
["United Kingdom","University of Sheffield",54,"5913069abdf6d44f1800091a","2017/5/10 12:50:38",9,2,"Private sector","Two or three credible candidate platforms- with an aim to produce full-scale computers.","Interim solutions- such as quantum simulation and adiabatic computing- e.g. since they would have a good chance of being useful in the medium term.","One chosen leading candidate platform- e.g. since only by focusing all available resources is there a reasonable chance of success.","Enabling technologies- e.g. since they would increase the available options for a full-scale quantum computer.","Basic research- e.g. since it is premature to move ahead with technology development and the attempts being made to do so are misguided.","Other (please explain in the textbox after submitting)."]
[null,"HHU Duesseldorf",22,"5913085abdf6d44f1800096f","2017/5/10 15:16:58",9,2,"Private sector","One chosen leading candidate platform- e.g. since only by focusing all available resources is there a reasonable chance of success.","Enabling technologies- e.g. since they would increase the available options for a full-scale quantum computer.","Two or three credible candidate platforms- with an aim to produce full-scale computers.","Interim solutions- such as quantum simulation and adiabatic computing- e.g. since they would have a good chance of being useful in the medium term.","Basic research- e.g. since it is premature to move ahead with technology development and the attempts being made to do so are misguided.","Other (please explain in the textbox after submitting)."]
["United Kingdom","University of Strathclyde",37,"59130bdcbdf6d44f18000a81","2017/5/10 13:13:48",9,2,"Private sector","Basic research- e.g. since it is premature to move ahead with technology development and the attempts being made to do so are misguided.","Enabling technologies- e.g. since they would increase the available options for a full-scale quantum computer.","Interim solutions- such as quantum simulation and adiabatic computing- e.g. since they would have a good chance of being useful in the medium term.","Two or three credible candidate platforms- with an aim to produce full-scale computers.","One chosen leading candidate platform- e.g. since only by focusing all available resources is there a reasonable chance of success.","Other (please explain in the textbox after submitting)."]
["France","Aix-Marseille Universite",38,"59130e6ebdf6d44f18000b39","2017/5/10 13:25:47",9,2,"Private sector","Basic research- e.g. since it is premature to move ahead with technology development and the attempts being made to do so are misguided.","Interim solutions- such as quantum simulation and adiabatic computing- e.g. since they would have a good chance of being useful in the medium term.","Enabling technologies- e.g. since they would increase the available options for a full-scale quantum computer.","Two or three credible candidate platforms- with an aim to produce full-scale computers.","One chosen leading candidate platform- e.g. since only by focusing all available resources is there a reasonable chance of success.","Other (please explain in the textbox after submitting)."]
["United Kingdom","Imperial College",25,"59132a29bdf6d44f18000fc4","2017/5/10 15:50:29",9,2,"Private sector","Enabling technologies- e.g. since they would increase the available options for a full-scale quantum computer.","Interim solutions- such as quantum simulation and adiabatic computing- e.g. since they would have a good chance of being useful in the medium term.","Basic research- e.g. since it is premature to move ahead with technology development and the attempts being made to do so are misguided.","Two or three credible candidate platforms- with an aim to produce full-scale computers.","One chosen leading candidate platform- e.g. since only by focusing all available resources is there a reasonable chance of success.","Other (please explain in the textbox after submitting)."]
["Sweden","Chalmers University of Technology",26,"5913342bbdf6d44f18001106","2017/5/10 15:47:19",9,2,"Private sector","Basic research- e.g. since it is premature to move ahead with technology development and the attempts being made to do so are misguided.","Enabling technologies- e.g. since they would increase the available options for a full-scale quantum computer.","Interim solutions- such as quantum simulation and adiabatic computing- e.g. since they would have a good chance of being useful in the medium term.","Two or three credible candidate platforms- with an aim to produce full-scale computers.","One chosen leading candidate platform- e.g. since only by focusing all available resources is there a reasonable chance of success.","Other (please explain in the textbox after submitting)."]
["United Kingdom","University of Sussex",33,"59134dbebdf6d44f1800133e","2017/5/10 17:55:46",9,2,"Private sector","Basic research- e.g. since it is premature to move ahead with technology development and the attempts being made to do so are misguided.","Enabling technologies- e.g. since they would increase the available options for a full-scale quantum computer.","Interim solutions- such as quantum simulation and adiabatic computing- e.g. since they would have a good chance of being useful in the medium term.","Two or three credible candidate platforms- with an aim to produce full-scale computers.","One chosen leading candidate platform- e.g. since only by focusing all available resources is there a reasonable chance of success.","Other (please explain in the textbox after submitting)."]
["Netherlands","QuTech",40,"591358f8bdf6d44f1800142a","2017/5/10 18:53:34",9,2,"Private sector","Two or three credible candidate platforms- with an aim to produce full-scale computers.","One chosen leading candidate platform- e.g. since only by focusing all available resources is there a reasonable chance of success.","Basic research- e.g. since it is premature to move ahead with technology development and the attempts being made to do so are misguided.","Enabling technologies- e.g. since they would increase the available options for a full-scale quantum computer.","Interim solutions- such as quantum simulation and adiabatic computing- e.g. since they would have a good chance of being useful in the medium term.","Other (please explain in the textbox after submitting)."]
["Switzerland","University of Geneva",49,"59141c947284506612000337","2017/5/11 8:58:46",9,2,"Private sector","One chosen leading candidate platform- e.g. since only by focusing all available resources is there a reasonable chance of success.","Two or three credible candidate platforms- with an aim to produce full-scale computers.","Interim solutions- such as quantum simulation and adiabatic computing- e.g. since they would have a good chance of being useful in the medium term.","Enabling technologies- e.g. since they would increase the available options for a full-scale quantum computer.","Basic research- e.g. since it is premature to move ahead with technology development and the attempts being made to do so are misguided.","Other (please explain in the textbox after submitting)."]
["Finland","University of Turku",43,"591463e0728450661200066e","2017/5/11 13:40:15",9,2,"Private sector","Basic research- e.g. since it is premature to move ahead with technology development and the attempts being made to do so are misguided.","Enabling technologies- e.g. since they would increase the available options for a full-scale quantum computer.","Interim solutions- such as quantum simulation and adiabatic computing- e.g. since they would have a good chance of being useful in the medium term.","Two or three credible candidate platforms- with an aim to produce full-scale computers.","One chosen leading candidate platform- e.g. since only by focusing all available resources is there a reasonable chance of success.","Other (please explain in the textbox after submitting)."]
["Greece","Democritus University of Thrace",57,"5914aca27284506612000968","2017/5/11 19:28:13",9,2,"Private sector","Interim solutions- such as quantum simulation and adiabatic computing- e.g. since they would have a good chance of being useful in the medium term.","Enabling technologies- e.g. since they would increase the available options for a full-scale quantum computer.","Basic research- e.g. since it is premature to move ahead with technology development and the attempts being made to do so are misguided.","Two or three credible candidate platforms- with an aim to produce full-scale computers.","One chosen leading candidate platform- e.g. since only by focusing all available resources is there a reasonable chance of success.","Other (please explain in the textbox after submitting)."]
["Switzerland","ETH Zurich",29,"5915606c3b6627457c000516","2017/5/12 7:36:42",9,2,"Private sector","Basic research- e.g. since it is premature to move ahead with technology development and the attempts being made to do so are misguided.","Enabling technologies- e.g. since they would increase the available options for a full-scale quantum computer.","Interim solutions- such as quantum simulation and adiabatic computing- e.g. since they would have a good chance of being useful in the medium term.","Two or three credible candidate platforms- with an aim to produce full-scale computers.","One chosen leading candidate platform- e.g. since only by focusing all available resources is there a reasonable chance of success.","Other (please explain in the textbox after submitting)."]
["Canada","ETH Zurich",21,"59156ba73b6627457c0005de","2017/5/12 8:34:13",9,2,"Private sector","One chosen leading candidate platform- e.g. since only by focusing all available resources is there a reasonable chance of success.","Enabling technologies- e.g. since they would increase the available options for a full-scale quantum computer.","Two or three credible candidate platforms- with an aim to produce full-scale computers.","Interim solutions- such as quantum simulation and adiabatic computing- e.g. since they would have a good chance of being useful in the medium term.","Basic research- e.g. since it is premature to move ahead with technology development and the attempts being made to do so are misguided.","Other (please explain in the textbox after submitting)."]
["Estonia","ETH Zurich",28,"5915e2573b6627457c000bb7","2017/5/12 16:56:41",9,2,"Private sector","Enabling technologies- e.g. since they would increase the available options for a full-scale quantum computer.","Interim solutions- such as quantum simulation and adiabatic computing- e.g. since they would have a good chance of being useful in the medium term.","One chosen leading candidate platform- e.g. since only by focusing all available resources is there a reasonable chance of success.","Two or three credible candidate platforms- with an aim to produce full-scale computers.","Basic research- e.g. since it is premature to move ahead with technology development and the attempts being made to do so are misguided.","Other (please explain in the textbox after submitting)."]
["Spain","University of the Basque Country",53,"5916d8b05d9b3ef7710004cc","2017/5/13 11:8:13",9,2,"Private sector","Basic research- e.g. since it is premature to move ahead with technology development and the attempts being made to do so are misguided.","Interim solutions- such as quantum simulation and adiabatic computing- e.g. since they would have a good chance of being useful in the medium term.","Two or three credible candidate platforms- with an aim to produce full-scale computers.","Enabling technologies- e.g. since they would increase the available options for a full-scale quantum computer.","One chosen leading candidate platform- e.g. since only by focusing all available resources is there a reasonable chance of success.","Other (please explain in the textbox after submitting)."]
["United Kingdom","University of Sussex",30,"591957ef7f8ed816520001da","2017/5/15 9:18:32",9,2,"Private sector","Two or three credible candidate platforms- with an aim to produce full-scale computers.","Enabling technologies- e.g. since they would increase the available options for a full-scale quantum computer.","Interim solutions- such as quantum simulation and adiabatic computing- e.g. since they would have a good chance of being useful in the medium term.","Basic research- e.g. since it is premature to move ahead with technology development and the attempts being made to do so are misguided.","One chosen leading candidate platform- e.g. since only by focusing all available resources is there a reasonable chance of success.","Other (please explain in the textbox after submitting)."]

{"sheet":"Charting","index":1,"n_rows":28,"n_cols":12,"rows_kept":28,"cut":false,"hidden":false,"merged":[]}
["Unweighted scores","Basic research","Two or three credible candidate platforms","Medium term (quantum simulation, adiabatic computing etc.)","Enabling technologies","One leading candidate platform","Other",null,null,null,null,"Checksum"]
["Highest priority",0.40000000000000019,0.18000000000000002,0.15,0.13999999999999999,0.11999999999999998,0.01,null,null,null,{"$f":"COUNTA(Foglio1!F:F)-1","v":100},{"$f":"SUM(B2:J2)","v":1.0000000000000002}]
["Priority 2",0.08,9.9999999999999992E-2,0.20000000000000004,0.52000000000000024,0.09,0.01,null,null,null,"Number of categories",1.0000000000000002]
["Priority 3",9.9999999999999992E-2,0.18000000000000002,0.48000000000000026,0.16,7.0000000000000007E-2,0.01,null,null,null,{"$f":"COUNTA(B1:J1)","v":6},1.0000000000000002]
["Priority 4",0.16,0.47000000000000025,0.11999999999999998,0.15,9.9999999999999992E-2,null,null,null,null,null,1.0000000000000002]
["Priority 5",0.26000000000000006,7.0000000000000007E-2,0.04,0.03,0.60000000000000031,null,null,null,null,null,1.0000000000000004]
["Lowest priority",null,null,0.01,null,0.02,0.97000000000000064,null,null,null,null,1.0000000000000007]
[null,null,null,null,null,null,null,null,null,null,null,0]
[null,null,null,null,null,null,null,null,null,null,null,0]
[null,null,null,null,null,null,null,null,null,null,null,0]
[]
[]
[]
[]
[null,null,null,null,null,null,null,null,null,null,null,{"$f":"SUM(B15:J15)","v":0}]
[null,null,null,null,null,null,null,null,null,null,null,0]
[null,null,null,null,null,null,null,null,null,null,null,0]
[null,null,null,null,null,null,null,null,null,null,null,0]
[null,null,null,null,null,null,null,null,null,null,null,0]
[null,null,null,null,null,null,null,null,null,null,null,0]
[null,null,null,null,null,null,null,null,null,null,null,0]
[null,null,null,null,null,null,null,null,null,null,null,0]
[null,null,null,null,null,null,null,null,null,null,null,0]
[]
[]
["Exact text used in Foglio1","Basic research- e.g. since it is premature to move ahead with technology development and the attempts being made to do so are misguided.","Two or three credible candidate platforms- with an aim to produce full-scale computers.","Interim solutions- such as quantum simulation and adiabatic computing- e.g. since they would have a good chance of being useful in the medium term.","Enabling technologies- e.g. since they would increase the available options for a full-scale quantum computer.","One chosen leading candidate platform- e.g. since only by focusing all available resources is there a reasonable chance of success.","Other (please explain in the textbox after submitting)."]
["Checksum",{"$f":"SUM(B2:B10)","v":1.0000000000000002},1.0000000000000004,1.0000000000000002,1.0000000000000002,1.0000000000000002,1.0000000000000007]
["Checksum",{"$f":"SUM(B15:B23)","v":0},{"$f":"SUM(C15:C23)","v":0},0,0,0,0]